bitfinex-derivatives/quotes_ETHF0:USTF0_20250327
["timestamp","ask_amount","ask_price","bid_price","bid_amount"]
[1743091115658,5.42219,2006.8,2006.7,2.33024]
[1743091115867,5.42219,2006.8,2006.7,1.3333]
[1743091117966,0.99698,2006.7,2006.6,0.99694]
[1743091118152,2.39008,2006.7,2006.6,0.99694]
[1743091118352,2.39008,2006.7,2006.2,0.99713]
[1743091118353,0.99718,2006.3,2006.2,0.99713]
[1743091118659,0.99712,2006.4,2006.3,0.99708]
[1743091119258,0.99712,2006.4,2006.3,1.3589]
[1743091119459,2.39022,2006.4,2006.3,2.35603]
[1743091120366,2.39022,2006.4,2006.3,1.3589]
[1743091120667,3.66462,2006.4,2006.3,1.3589]
[1743091121570,3.66462,2006.4,2005.9,0.9973]
[1743091121571,0.99733,2006.0,2005.9,0.9973]
[1743091121753,0.99733,2006.0,2005.9,2.2283]
[1743091122965,0.99733,2006.0,2005.9,3.6503]
[1743091123373,2.34666,2006.1,2006.0,0.99728]
[1743091123565,2.34666,2006.1,2006.0,2.34598]
[1743091124570,4.20502,2006.2,2006.1,0.99723]
[1743091124760,3.2078,2006.2,2006.1,2.34593]
[1743091125071,0.99712,2006.4,2006.3,0.99713]
[1743091125471,6.94827,2006.5,2006.4,0.99708]
[1743091125674,5.63777,2006.5,2006.4,0.99708]
[1743091126070,4.6407,2006.5,2005.8,3.2078]
[1743091126274,4.6407,2006.5,2006.0,1.2761]
[1743091126275,0.99727,2006.1,2006.0,1.2761]
[1743091126473,6.6388,2006.2,2005.2,3.58684326]
[1743091126667,3.2078,2005.8,2005.7,0.99743]
[1743091126976,0.99744,2005.7,2005.6,0.99744]
[1743091127173,4.2052,2005.8,2005.7,0.99743]
[1743091127376,2.37604645,2005.9,2005.8,0.99738]
[1743091127577,0.99739,2005.8,2005.7,0.99739]
[1743091127775,2.36859,2005.8,2005.7,0.99739]
[1743091127970,0.99743,2005.7,2005.6,1.4284]
[1743091128176,2.36863,2005.7,2005.6,1.4284]
[1743091128482,0.99752,2005.6,2005.4,1.2773]
[1743091128669,3.63472,2005.6,2005.4,2.27488]
[1743091129071,1.3712,2005.5,2005.4,2.27488]
[1743091129270,3.2078,2005.5,2005.4,0.99758]
[1743091129571,3.2078,2005.5,2005.1,3.83469]
[1743091129765,3.2078,2005.5,2005.4,0.99758]
[1743091129969,4.6194,2005.5,2005.4,0.99758]
[1743091131378,3.2078,2005.8,2005.3,3.431]
[1743091131572,0.00747645,2005.9,2005.8,0.99738]
[1743091131878,0.00747645,2005.9,2005.8,4.20518]
[1743091132267,0.00747645,2005.9,2005.8,6.70518]
[1743091132473,0.99709,2006.4,2006.3,0.99712]
[1743091132668,1.3762,2006.4,2006.3,0.99713]
[1743091132988,4.4815,2006.5,2006.4,0.99708]
[1743091132989,3.2078,2006.5,2006.4,0.99708]
[1743091133391,0.99716,2006.3,2005.9,5.92425]
[1743091133589,2.37331,2006.4,2006.3,0.99713]
[1743091133789,2.37331,2006.4,2006.3,1.3501]
[1743091134195,1.3762,2006.4,2006.3,2.34723]
[1743091134391,3.2078,2006.5,2006.4,0.99708]
[1743091134591,3.2078,2006.5,2006.4,2.34718]
[1743091135986,4.20483,2006.5,2006.4,1.3501]
[1743091136192,3.2078,2006.5,2006.3,0.99712]
[1743091136496,2.5876,2006.4,2006.3,0.99712]
[1743091136696,2.5876,2006.4,2006.3,2.37052]
[1743091137891,0.99713,2006.3,2006.2,1.00462645]
[1743091138095,2.5876,2006.4,2006.2,0.00747645]
[1743091138392,3.58471,2006.4,2006.3,0.99713]
[1743091138898,3.58471,2006.4,2006.3,2.38063]
[1743091140383,2.5876,2006.4,2006.3,0.99713]
[1743091140585,0.99713,2006.3,2006.2,1.00462645]
[1743091140795,1.3255,2006.3,2006.2,1.00462645]
[1743091142397,3.55563,2006.3,2006.2,0.00747645]
[1743091146495,3.55563,2006.3,2006.2,1.00465645]
[1743091147096,2.5585,2006.3,2006.2,1.00465645]
[1743091147301,4.5633,2006.5,2006.4,0.99708]
[1743091147489,3.2078,2006.5,2006.4,0.99708]
[1743091148393,4.20483,2006.5,2006.4,0.99708]
[1743091148593,0.99708,2006.4,2006.3,2.3799]
[1743091148786,0.99708,2006.4,2006.3,0.9971]
[1743091148991,0.99713,2006.3,2006.2,1.00461645]
[1743091149197,2.23893,2006.3,2006.2,1.00461645]
[1743091150196,3.2078,2006.5,2006.4,0.99708]
[1743091150592,0.00747645,2006.7,2006.6,0.99698]
[1743091151300,4.4577,2006.9,2006.8,0.99689]
[1743091151997,3.2078,2006.9,2006.8,0.99689]
[1743091152199,3.2078,2006.9,2006.8,2.30989]
[1743091154303,0.00747645,2007.1,2006.8,1.313]
[1743091154595,0.99692,2006.8,2006.7,0.99691]
[1743091154999,3.62122,2006.8,2006.7,0.99691]
[1743091155601,2.6243,2006.8,2006.7,0.99691]
[1743091155801,3.62119,2006.8,2006.7,0.99691]
[1743091156299,2.6243,2006.8,2006.7,0.99691]
[1743091156797,3.62119,2006.8,2006.7,0.99691]
[1743091156999,3.2078,2006.9,2006.8,0.99689]
[1743091157594,4.20464,2006.9,2006.8,0.99689]
[1743091158397,0.99689,2006.8,2006.7,2.33754]
[1743091158594,4.20468,2006.9,2006.8,0.99689]
[1743091158793,4.20468,2006.9,2006.8,2.33749]
[1743091160795,4.20468,2006.9,2006.8,1.3406]
[1743091161496,5.52248,2006.9,2006.8,2.33749]
[1743091161702,5.52248,2006.9,2006.8,1.3406]
[1743091161903,0.99689,2006.8,2006.7,0.9969]
[1743091162199,2.31469,2006.8,2006.7,0.9969]
[1743091162401,0.99698,2006.7,2006.6,0.99696]
[1743091162599,3.62608,2006.7,2006.6,2.37706]
[1743091163396,2.49248,2006.6,2006.2,0.00747645]
[1743091163597,0.99711,2006.4,2006.3,0.99708]
[1743091164506,0.99713,2006.4,2006.3,0.99711]
[1743091165706,0.99713,2006.3,2006.2,2.43232645]
[1743091165893,2.35873,2006.3,2006.2,2.43232645]
[1743091175212,2.35873,2006.3,2006.2,0.00747645]
[1743091175411,5.56653,2006.3,2006.2,0.00747645]
[1743091175811,5.56653,2006.3,2006.2,1.43827645]
[1743091176706,5.56653,2006.3,2006.2,2.43545645]
[1743091176908,5.56653,2006.3,2006.2,1.43827645]
[1743091177111,5.56653,2006.3,2006.2,2.43545645]
[1743091177603,5.56653,2006.3,2006.2,1.43827645]
[1743091177805,5.56653,2006.3,2006.2,0.00747645]
[1743091178212,0.99723,2006.1,2006.0,1.4308]
[1743091178613,0.99728,2006.0,2005.9,2.7014]
[1743091178814,5.50348,2006.0,2005.9,2.7014]
[1743091179007,4.5062,2006.0,2005.5,4.20531]
[1743091179311,0.99753,2005.5,2005.4,1.2367]
[1743091179511,0.99753,2005.5,2005.4,2.5954]
[1743091180110,4.20524,2005.7,2005.6,0.99748]
[1743091180513,3.2078,2005.7,2005.6,0.99748]
[1743091181010,0.00747645,2006.0,2005.9,0.99733]
[1743091181711,0.00747645,2006.0,2005.9,2.41293]
[1743091186103,1.32047645,2006.0,2005.9,2.41293]
[1743091186312,0.00747645,2006.0,2005.9,2.41293]
[1743091187310,1.00475645,2006.0,2005.9,2.41293]
[1743091187511,3.68825645,2006.0,2005.9,2.41293]
[1743091188414,2.69097645,2006.0,2005.9,2.41293]
[1743091189810,3.68825645,2006.0,2005.9,2.41293]
[1743091190313,2.69097645,2006.0,2005.9,2.41293]
[1743091191317,1.42087645,2006.0,2005.9,2.41293]
[1743091192317,3.2078,2006.4,2006.3,0.99713]
[1743091193213,3.2078,2006.4,2006.3,2.36653]
[1743091193409,4.5773,2006.4,2006.3,2.36653]
[1743091197320,0.99715,2006.3,2006.2,0.99715]
[1743091197520,2.43975,2006.3,2006.2,2.34525]
[1743091198015,2.43973,2006.3,2006.2,2.34525]
[1743091199120,1.4426,2006.3,2006.0,2.6578]
[1743091199317,4.93841,2006.2,2006.1,0.99723]
[1743091199614,4.93838,2006.2,2006.1,0.99723]
[1743091200321,3.9412,2006.2,2006.1,2.42893]
[1743091200534,3.9412,2006.2,2006.1,1.4317]
[1743091201223,4.93838,2006.2,2006.1,1.4317]
[1743091201819,3.9412,2006.2,2005.9,3.2078]
[1743091202017,1.3198,2006.1,2005.9,3.2078]
[1743091203925,0.99728,2006.0,2005.9,4.20508]
[1743091205026,1.3198,2006.1,2006.0,0.99728]
[1743091205027,2.31707,2006.1,2006.0,0.99728]
[1743091205225,0.99743,2005.8,2005.7,0.99741]
[1743091205428,0.99725,2006.1,2005.5,3.2078]
[1743091205617,0.99727,2006.1,2006.0,0.99725]
[1743091205817,5.7064,2006.2,2005.9,0.99729]
[1743091206023,5.7064,2006.2,2006.1,0.99723]
[1743091206329,6.70358,2006.2,2006.1,0.99723]
[1743091206521,0.99733,2005.9,2005.8,4.20516]
[1743091206922,0.99743,2005.7,2005.6,0.99747]
[1743091207229,3.54382,2005.8,2005.7,0.99742]
[1743091207627,2.5464,2005.8,2005.4,1.2913]
[1743091207827,0.99758,2005.4,2005.3,3.2078]
[1743091208026,3.2078,2005.6,2005.3,3.2078]
[1743091208226,3.2078,2005.6,2005.4,0.99754]
[1743091208227,4.21277645,2005.6,2005.4,0.99754]
[1743091208433,3.21527645,2005.6,2005.5,0.99753]
[1743091208829,4.21275645,2005.6,2005.5,0.99753]
[1743091209128,0.99758,2005.4,2005.3,4.20541]
[1743091209326,0.99758,2005.4,2005.3,3.2078]
[1743091209528,0.99763,2005.3,2005.2,0.00747645]
[1743091209830,2.34273,2005.3,2005.2,0.00747645]
[1743091210224,3.21527645,2005.6,2005.2,2.50166645]
[1743091210421,3.21527645,2005.6,2005.4,0.99756]
[1743091210422,0.99755,2005.5,2005.4,0.99756]
[1743091210623,0.99759,2005.4,2005.3,0.99759]
[1743091211029,0.99756,2005.5,2005.4,0.99755]
[1743091211230,0.99761,2005.4,2005.3,0.99761]
[1743091211434,5.70907645,2005.6,2005.2,1.26517645]
[1743091211627,2.5859,2005.3,2005.2,0.00747645]
[1743091211828,3.58353,2005.3,2005.2,0.00747645]
[1743091212132,3.58353,2005.3,2005.2,1.00515645]
[1743091212929,0.99758,2005.5,2005.4,0.99758]
[1743091213131,3.21527645,2005.6,2005.5,0.99753]
[1743091213630,0.00747645,2005.6,2005.5,0.99753]
[1743091215034,0.00747645,2005.6,2005.3,1.2756]
[1743091215326,0.99756,2005.5,2005.4,0.99755]
[1743091215529,0.99761,2005.4,2005.3,0.9976]
[1743091215731,1.3266,2005.5,2005.4,0.99758]
[1743091216125,0.99761,2005.4,2005.3,0.9976]
[1743091216323,0.99763,2005.4,2005.3,0.99762]
[1743091216523,1.3266,2005.5,2005.2,3.43147645]
[1743091216726,0.99763,2005.4,2005.3,0.9976]
[1743091217026,0.99763,2005.3,2005.2,1.00513645]
[1743091217335,0.9976,2005.4,2005.3,0.9976]
[1743091217633,2.32415,2005.5,2005.4,0.99758]
[1743091219028,0.99763,2005.3,2005.2,0.00747645]
[1743091219232,0.99758,2005.4,2005.3,0.9976]
[1743091219433,0.99763,2005.3,2005.2,1.00512645]
[1743091220334,0.99763,2005.3,2005.2,0.00747645]
[1743091220833,0.99774,2005.1,2005.0,0.99772]
[1743091221029,0.99776,2005.1,2005.0,0.99773]
[1743091221227,2.27649,2005.2,2005.1,0.99773]
[1743091221729,0.99773,2005.1,2005.0,0.99775]
[1743091221929,0.99778,2005.0,2004.9,1.00527645]
[1743091222535,2.43528,2005.0,2004.9,1.00527645]
[1743091222739,2.56398844,2005.0,2004.9,1.00527645]
[1743091223040,2.56398844,2005.0,2004.9,1.00530645]
[1743091223537,2.56398844,2005.0,2004.9,0.00747645]
[1743091224424,1.56620844,2005.0,2004.9,1.00530645]
[1743091224824,0.12870844,2005.0,2004.9,1.00530645]
[1743091225028,0.12870844,2005.0,2004.9,5.81950645]
[1743091227234,0.12870844,2005.0,2004.9,2.39550645]
[1743091227437,1.53020844,2005.0,2004.9,2.39550645]
[1743091227846,0.12870844,2005.0,2004.9,2.39550645]
[1743091228538,5.91771,2005.7,2004.9,2.39550645]
[1743091228539,3.21527645,2005.6,2005.0,2.49446]
[1743091228732,0.00747645,2005.6,2005.5,0.99753]
[1743091228927,0.00747645,2005.6,2005.5,4.42153]
[1743091229131,3.60033,2006.2,2006.1,0.99723]
[1743091229338,2.6031,2006.2,2006.1,0.99723]
[1743091229835,3.2078,2006.3,2005.8,3.2078]
[1743091230038,0.99728,2006.0,2005.9,0.99732]
[1743091230234,2.35396,2006.1,2005.9,0.99732]
[1743091230539,2.32438,2006.0,2005.9,0.99732]
[1743091230926,0.99733,2005.9,2005.8,2.39635645]
[1743091231131,1.3271,2005.9,2005.8,2.39635645]
[1743091231735,2.32443,2005.9,2005.8,2.39635645]
[1743091231934,2.32443,2005.9,2005.8,0.00747645]
[1743091232136,3.82045,2005.9,2005.4,4.8145]
[1743091232335,1.3271,2005.9,2005.6,0.99747]
[1743091232836,0.99743,2005.7,2005.6,0.99747]
[1743091233136,0.99744,2005.7,2005.6,0.99746]
[1743091233326,0.99748,2005.6,2005.5,0.99749]
[1743091233534,1.4122,2005.6,2005.5,0.99749]
[1743091233838,2.40968,2005.6,2005.5,0.99749]
[1743091234137,3.70118,2005.6,2005.5,0.99749]
[1743091234439,3.70118,2005.6,2005.4,2.39651645]
[1743091234440,3.70121,2005.6,2005.4,2.39651645]
[1743091234636,1.4122,2005.5,2005.4,2.39651645]
[1743091234839,1.4122,2005.5,2005.4,1.00501645]
[1743091235637,2.40973,2005.5,2005.4,1.00501645]
[1743091235837,2.40973,2005.5,2005.4,0.00747645]
[1743091236028,2.40973,2005.5,2005.4,1.00505645]
[1743091236229,1.4122,2005.5,2005.4,1.00505645]
[1743091237633,3.2078,2005.7,2005.4,0.00747645]
[1743091237833,3.2078,2005.7,2005.6,0.99748]
[1743091238037,2.6185,2005.8,2005.7,0.99743]
[1743091239334,1.3145,2005.8,2005.7,0.99743]
[1743091239532,3.2078,2006.0,2005.9,0.99733]
[1743091239932,4.20508,2006.0,2005.9,0.99733]
[1743091240133,5.7934,2006.0,2005.7,3.423]
[1743091240433,1.3061,2005.9,2005.5,5.9962]
[1743091240631,1.3061,2005.9,2005.4,3.43047645]
[1743091240838,3.79946,2005.9,2005.5,0.99751]
[1743091241038,0.99746,2005.7,2005.6,0.99748]
[1743091241340,0.99746,2005.7,2005.6,0.99747]
[1743091241642,0.99747,2005.7,2005.6,0.99747]
[1743091241844,0.99745,2005.7,2005.6,0.99746]
[1743091242344,0.99748,2005.6,2005.5,0.99749]
[1743091242527,1.3061,2005.8,2005.5,0.99749]
[1743091242528,0.99747,2005.7,2005.5,0.99749]
[1743091242728,2.5863,2005.6,2005.5,0.99749]
[1743091243037,0.99753,2005.5,2005.4,0.00747645]
[1743091243246,2.30433,2005.5,2005.4,0.00747645]
[1743091244237,2.30433,2005.5,2005.4,1.00505645]
[1743091244440,1.3068,2005.5,2005.4,1.00505645]
[1743091245541,3.2078,2005.7,2005.6,0.99748]
[1743091246246,4.6233,2005.7,2005.6,0.99748]
[1743091248240,1.4155,2005.7,2005.6,0.99748]
[1743091250744,1.2866,2006.1,2006.0,0.99728]
[1743091251049,1.2335,2006.2,2006.1,0.99723]
[1743091251940,0.28795,2006.2,2006.1,4.20503]
[1743091252142,0.00747645,2006.3,2006.2,0.99718]
[1743091252347,0.00747645,2006.3,2006.2,3.67908]
[1743091253356,7.62671,2006.8,2006.7,0.99694]
[1743091253357,3.2078,2006.8,2006.7,0.99694]
[1743091253841,0.997,2006.6,2006.2,2.4929]
[1743091254041,3.2078,2006.3,2006.2,2.33715]
[1743091254747,2.6044,2006.4,2006.3,0.99713]
[1743091254940,1.2722,2006.4,2006.3,0.99713]
[1743091256552,0.00747645,2006.5,2006.4,0.99708]
[1743091256951,1.43357645,2006.5,2006.4,0.99708]
[1743091258044,1.43357645,2006.5,2006.2,5.1878]
[1743091258045,1.43357645,2006.5,2006.2,1.34]
[1743091258253,3.2078,2006.3,2006.2,2.33715]
[1743091258751,4.5204,2006.3,2006.2,2.33715]
[1743091259754,7.01326,2006.3,2006.0,0.00747645]
[1743091259952,3.56822,2006.2,2006.1,0.99723]
[1743091260155,4.88082,2006.2,2006.1,0.99723]
[1743091260359,3.8836,2006.2,2006.1,0.99723]
[1743091260656,3.2078,2006.3,2006.2,0.99718]
[1743091260946,1.4011,2006.4,2006.3,0.99713]
[1743091261152,2.57847645,2006.5,2006.4,0.99708]
[1743091261541,3.97957645,2006.5,2006.2,1.401]
[1743091261752,0.99713,2006.3,2006.2,2.39817]
[1743091262053,3.97957645,2006.5,2006.2,2.39817]
[1743091262054,0.99711,2006.4,2006.3,0.99713]
[1743091262246,2.39821,2006.4,2006.3,0.99713]
[1743091263954,1.4011,2006.4,2006.3,0.99713]
[1743091264447,2.39818,2006.4,2006.3,0.99713]
[1743091264949,0.99713,2006.3,2006.2,1.401]
[1743091265145,4.573,2006.3,2006.1,0.99718]
[1743091265350,0.99719,2006.2,2006.1,2.30358]
[1743091265546,1.3652,2006.2,2006.1,2.30358]
[1743091266148,3.2078,2006.3,2006.2,0.99718]
[1743091266348,4.573,2006.3,2006.2,2.30358]
[1743091266949,1.3652,2006.3,2006.2,2.30358]
[1743091267855,3.2078,2006.4,2006.3,0.99713]
[1743091268050,4.5632,2006.4,2006.3,0.99713]
[1743091268946,2.49284,2006.3,2006.0,0.00747645]
[1743091269146,2.49284,2006.3,2005.6,0.99747]
[1743091269147,0.99747,2005.7,2005.6,0.99747]
[1743091269352,3.2078,2005.8,2005.5,1.3061]
[1743091269555,1.2756,2005.6,2005.5,2.30363]
[1743091269942,2.6101,2005.6,2005.5,2.30363]
[1743091270550,3.60758,2005.6,2005.5,2.30363]
[1743091270951,0.99754,2005.5,2005.4,0.99754]
[1743091271251,0.99758,2005.4,2005.3,0.00747645]
[1743091271768,2.33208,2005.4,2005.3,0.00747645]
[1743091272158,3.82854,2005.4,2004.8,1.2285]
[1743091272357,0.99774,2005.1,2005.0,0.99775]
[1743091272553,4.20551,2005.2,2005.1,0.99773]
[1743091272753,0.99773,2005.1,2005.0,0.99774]
[1743091272953,1.2468,2005.1,2005.0,0.99778]
[1743091273456,2.24453,2005.1,2005.0,0.99778]
[1743091273658,2.24453,2005.1,2004.9,2.35331]
[1743091273852,1.2468,2005.1,2005.0,0.99778]
[1743091274852,3.2078,2005.2,2004.9,1.3555]
[1743091275048,6.09229054,2015.9,2005.1,3.2078]
[1743091275049,5.70079,2006.2,2005.1,3.2078]
[1743091275256,3.72003,2006.0,2005.4,3.2078]
[1743091275456,3.2078,2005.8,2005.4,4.20537]
[1743091275662,0.99744,2005.7,2005.5,0.99752]
[1743091275954,2.27984,2005.7,2005.5,0.99751]
[1743091276160,2.27983,2005.7,2005.5,0.99751]
[1743091276362,1.2824,2005.7,2005.6,0.99748]
[1743091277266,0.00747645,2005.8,2005.7,0.99743]
[1743091278057,0.02020212,2005.8,2005.7,0.99743]
[1743091278963,0.99745,2005.7,2005.5,1.3095]
[1743091279278,6.6288,2005.6,2005.4,0.00747645]
[1743091279467,0.99761,2005.4,2005.1,1.3618]
[1743091279659,3.2078,2005.2,2005.1,2.35953]
[1743091280059,3.22052567,2005.2,2005.1,2.35953]
[1743091280564,3.22052567,2005.2,2004.8,5.70245]
[1743091280867,3.22052567,2005.2,2005.1,0.99773]
[1743091282259,4.21820567,2005.2,2005.1,0.99773]
[1743091282459,3.22052567,2005.2,2005.1,0.99773]
[1743091282757,4.54502567,2005.2,2005.1,0.99773]
[1743091283161,5.54270567,2005.2,2005.1,0.99773]
[1743091283362,4.54502567,2005.2,2005.1,0.99773]
[1743091283767,5.54270567,2005.2,2005.1,0.99773]
[1743091284671,0.99775,2005.1,2005.0,0.99773]
[1743091284864,5.54273567,2005.2,2005.1,0.99773]
[1743091285257,0.99775,2005.1,2005.0,0.99773]
[1743091285462,5.54274567,2005.2,2005.1,0.99773]
[1743091285865,3.22052567,2005.2,2005.1,0.99773]
[1743091286072,0.00747645,2005.8,2005.7,0.99743]
[1743091287071,0.99743,2005.7,2005.6,4.20528]
[1743091287275,0.99743,2005.7,2005.3,2.49397]
[1743091287276,1.329,2005.7,2005.5,0.9975]
[1743091287464,1.329,2005.7,2005.6,0.99748]
[1743091288065,1.29487645,2005.8,2005.7,0.99743]
[1743091289464,0.00747645,2005.8,2005.7,0.99743]
[1743091289667,4.42216,2006.3,2006.2,0.99718]
[1743091289967,4.42316,2006.3,2006.2,0.99718]
[1743091290166,44.82316,2006.3,2006.2,0.99718]
[1743091290367,0.99723,2006.1,2006.0,0.99723]
[1743091290776,0.99733,2005.9,2005.8,1.00480645]
[1743091291171,38.89733,2005.9,2005.8,1.00480645]
[1743091291471,40.30303,2005.9,2005.8,1.00480645]
[1743091292476,2.40303,2005.9,2005.8,1.00480645]
[1743091293076,1.4057,2005.9,2005.8,1.00480645]
[1743091293278,2.40303,2005.9,2005.8,1.00480645]
[1743091293774,40.30303,2005.9,2005.8,1.00480645]
[1743091294172,2.40303,2005.9,2005.8,1.00480645]
[1743091294871,0.00747645,2006.3,2006.2,0.99718]
[1743091297971,41.49622,2007.0,2006.5,2.49254]
[1743091298173,52.76647,2007.5,2006.5,2.49254]
[1743091298174,3.2078,2007.6,2006.9,2.49204]
[1743091298479,2.39791,2007.4,2007.2,0.99666]
[1743091298981,5.81891,2007.4,2007.2,0.99666]
[1743091299182,5.81891,2007.4,2007.3,0.99664]
[1743091299385,5.81891,2007.4,2007.2,0.99665]
[1743091299576,4.8223,2007.4,2007.1,0.00747645]
[1743091299885,0.99664,2007.3,2007.1,0.00747645]
[1743091300178,1.4013,2007.2,2007.1,1.00421645]
[1743091300386,2.39799,2007.2,2007.1,0.00747645]
[1743091301180,2.39799,2007.2,2007.1,1.00421645]
[1743091301581,1.4013,2007.2,2007.1,1.00421645]
[1743091301800,2.39799,2007.2,2007.1,1.00421645]
[1743091301999,1.4013,2007.2,2007.1,1.00421645]
[1743091302203,4.8213,2007.2,2007.1,1.00421645]
[1743091302495,1.4013,2007.2,2007.1,1.00421645]
[1743091302702,3.42,2007.2,2007.1,1.00421645]
[1743091303295,4.7478,2007.2,2007.1,1.00421645]
[1743091303707,43.64449,2007.2,2007.1,0.00747645]
[1743091303899,0.99679,2007.1,2007.0,0.99674]
[1743091304090,2.35219,2007.1,2007.0,0.99674]
[1743091304698,1.3554,2007.1,2007.0,0.99674]
[1743091305505,2.35214,2007.1,2007.0,0.99674]
[1743091306006,1.3554,2007.1,2007.0,0.99674]
[1743091307406,0.99672,2007.2,2007.1,0.99674]
[1743091307603,3.2078,2007.3,2006.9,3.86375]
[1743091307804,3.2078,2007.3,2007.2,0.99669]
[1743091308004,4.20444,2007.3,2007.2,0.99669]
[1743091308309,9.02874,2007.3,2007.2,0.99669]
[1743091308507,8.0321,2007.3,2007.2,0.99669]
[1743091308711,0.00747645,2007.5,2007.4,0.99659]
[1743091309099,1.00401645,2007.5,2007.4,0.99659]
[1743091309405,0.99659,2007.4,2007.3,0.99661]
[1743091309604,5.61549,2007.4,2007.3,0.99661]
[1743091309795,4.6189,2007.4,2007.3,0.99661]
[1743091309999,5.61549,2007.4,2007.3,0.99661]
[1743091310901,0.99664,2007.3,2007.2,2.39476]
[1743091311096,5.82674,2007.3,2007.2,2.39476]
[1743091311301,4.8301,2007.3,2007.2,2.39476]
[1743091311599,4.8301,2007.3,2007.1,3.2078]
[1743091311600,0.99669,2007.2,2007.1,4.2045]
[1743091311795,2.40779,2007.2,2007.1,4.2045]
[1743091312709,0.99684,2006.9,2006.8,1.00432645]
[1743091312903,4.41583,2007.0,2006.9,0.99684]
[1743091313104,5.77803,2007.0,2006.9,0.99684]
[1743091313411,0.99684,2006.9,2006.8,1.00431645]
[1743091313715,2.35904,2006.9,2006.8,1.00431645]
[1743091314208,2.35904,2006.9,2006.8,0.00747645]
[1743091314809,5.77804,2006.9,2006.8,1.00436645]
[1743091316213,5.77804,2006.9,2006.8,0.00747645]
[1743091317704,0.99698,2006.7,2006.6,0.99693]
[1743091319106,0.99692,2006.8,2006.7,0.99689]
[1743091319303,2.40272,2006.8,2006.7,0.99689]
[1743091319507,0.99687,2006.9,2006.8,0.99684]
[1743091319709,5.82167,2006.9,2006.8,0.99684]
[1743091320710,6.6268,2007.1,2007.0,0.99679]
[1743091320903,52.73823,2007.6,2007.3,0.99664]
[1743091320904,1.4058,2007.4,2007.3,0.99664]
[1743091321109,0.00747645,2007.5,2007.4,0.99659]
[1743091321407,0.99664,2007.3,2007.2,2.39153]
[1743091321716,0.99664,2007.4,2007.3,0.9966]
[1743091322308,0.99664,2007.3,2007.2,2.39157]
[1743091322510,2.35554,2007.3,2007.2,2.39157]
[1743091322814,0.99664,2007.4,2007.3,0.99659]
[1743091323309,3.42647645,2007.5,2007.4,0.99659]
[1743091323612,0.00747645,2007.5,2007.4,0.99659]
[1743091323817,0.00747645,2007.5,2007.4,4.20439]
[1743091324017,0.00747645,2007.5,2007.4,0.99659]
[1743091325116,1.00401645,2007.5,2007.4,0.99659]
[1743091326717,0.00747645,2007.5,2007.4,0.99659]
[1743091327114,1.00401645,2007.5,2007.4,0.99659]
[1743091327713,0.00747645,2007.5,2007.4,0.99659]
[1743091328314,0.00747645,2007.5,2007.4,4.20439]
[1743091328812,0.00747645,2007.5,2007.4,6.91979]
[1743091329218,3.2078,2007.9,2007.8,0.99639]
[1743091329420,4.20414,2007.9,2007.8,0.99639]
[1743091329825,0.99639,2007.8,2007.7,2.37731]
[1743091330115,0.99663,2007.4,2007.3,0.99661]
[1743091330316,0.99665,2007.4,2007.3,1.3809]
[1743091330519,0.99665,2007.4,2007.3,2.37754]
[1743091330826,2.38595,2007.4,2007.3,2.37754]
[1743091331323,2.38595,2007.4,2007.3,1.3809]
[1743091332222,0.99669,2007.2,2007.1,3.21527645]
[1743091332422,0.99669,2007.2,2007.1,0.00747645]
[1743091332615,4.41469,2007.2,2007.1,0.00747645]
[1743091332809,7.05009,2007.2,2007.1,0.00747645]
[1743091333010,7.05009,2007.2,2006.8,1.3753]
[1743091333011,0.99684,2006.9,2006.8,1.3753]
[1743091333215,4.41484,2006.9,2006.8,2.37219]
[1743091333725,5.84884,2006.9,2006.8,2.37219]
[1743091335728,0.99684,2006.9,2006.8,2.37219]
[1743091335918,7.62262,2007.0,2006.9,0.99684]
[1743091336826,0.99689,2006.9,2006.8,0.99686]
[1743091337028,2.37819,2006.9,2006.8,0.99686]
[1743091338226,0.99689,2006.8,2006.7,2.37181]
[1743091338422,2.37819,2006.8,2006.7,2.37181]
[1743091339412,1.3813,2006.8,2006.7,2.37181]
[1743091340821,7.6226,2007.0,2006.9,0.99684]
[1743091341026,0.99684,2006.9,2006.8,0.99686]
[1743091341219,2.41544,2006.9,2006.8,0.99686]
[1743091342723,1.4186,2006.9,2006.8,0.99686]
[1743091343121,2.41544,2006.9,2006.8,0.99686]
[1743091343929,0.99689,2006.8,2006.7,1.3749]
[1743091344122,0.99689,2006.8,2006.4,2.29956]
[1743091344123,0.99703,2006.5,2006.4,2.29956]
[1743091344322,4.41603,2006.5,2006.4,2.29956]
[1743091344816,43.68443,2006.5,2006.4,2.29956]
[1743091346128,4.5481,2006.6,2006.5,0.99703]
[1743091346326,0.99689,2006.9,2006.6,0.99698]
[1743091346527,2.33949,2006.9,2006.8,0.99684]
[1743091346720,2.33944,2006.9,2006.8,0.99684]
[1743091348622,2.5646,2007.2,2007.1,0.99674]
[1743091348825,2.33925,2007.3,2007.2,0.99669]
[1743091350626,1.3426,2007.3,2007.1,1.3111]
[1743091350828,0.99679,2007.1,2007.0,0.99675]
[1743091351225,0.99679,2007.0,2006.9,2.3079]
[1743091352133,2.32797,2007.1,2007.0,0.99679]
[1743091352334,2.32797,2007.1,2007.0,2.32689]
[1743091352735,40.22797,2007.1,2007.0,2.32689]
[1743091353140,43.64597,2007.1,2007.0,2.32689]
[1743091353534,0.99679,2007.0,2006.9,0.99681]
[1743091353734,2.29939,2007.0,2006.9,2.32691]
[1743091353943,4.75869,2007.0,2006.9,2.32691]
[1743091354634,0.99692,2006.8,2006.6,2.49245]
[1743091354836,0.99692,2006.8,2006.7,2.32697]
[1743091355237,0.99688,2006.9,2006.8,0.99684]